Workbook

Sheet Narudžbenica
A1: Uprava: Vukovarska Avenija 272/12, 10000 Zagreb | P1: Veleprodaja i Školski odjel: Kopačevski put 1c, 10090 Zagreb
A2: OIB: 80364394364, MB: 1476297 | P2: Tel.: +385 1 4059 556
A3: IBAN: HR3923600001103178728
A8: Šifra kupca: | B8: 1 | D8: Naručitelj/kupac: | M8: Vrst kupca (označite X)
D10: Adresa:
D12: OIB: | M12: x | N12: ŠKOLE
D14: Kontakt osoba:
D16: Tel. / fax.: | M16: Datum: | N16: =NOW() -> 2025-07-16T09:09:32.660
D19: Način plaćanja (označite s X): | E19: Po ponudi (predračunu) | N19: x
E20: S odgodom plaćanja. Ug. broj:
D23: Preuzimanje robe (označite s X): | E23: Osobno u našem skladištu:
E24: Isporuka poštom (poštarina se NE naplaćuje) | N24: x
A26: CJENIK - NARUDŽBENICA UDŽBENIKA ZA ŠK. GOD. 2025./2026.
A27: VRIJEDI OD 01.06.2025.
A28: Bar code | B28: Reg.broj | C28: Šifra kmpl | D28: Naziv udžbenika | E28: Autori | F28: Vrsta izdanja | G28: Težina | H28: Uk. težina | I28: Raz. | J28: VPC | L28: MPC | M28: Rabat | N28: Kom | O28: Iznos rabata | P28: Iznos
E29: O S N O V N A ŠKOLA
D30: HRVATSKI JEZIK
E31: 1. RAZRED
A32: 9789533552712 | B32: 6036 | C32: 3872 | D32: RADOST ČITANJA I PISANJA, 1. RAZRED, 1. SVEZAK : radni udžbenik: Hrvatska početnica za 1. razred osnovne škole - Predvježbe; Tiskana slova | E32: Ante Bežen, Marija Turk Sakač, Sanja Minarik, Gordana Vuglec | F32: radni udžbenik | G32: 0.34 | H32: =G32*N32 -> 0 | I32: 1. | J32: =L32/1.05 -> 10.9047619 | L32: 11.45 | M32: =IF(M$14<>"",0%,IF(M$12<>"",0%,IF(M$10<>"",IF(N$19<>"",13%,10%),0%))) -> 0 | O32: =L32*M32*N32 -> 0 | P32: =L32*N32 -> 0
A33: 9789533552729 | B33: 6037 | D33: RADOST ČITANJA I PISANJA, 1. RAZRED, 2. SVEZAK : radni udžbenik: Hrvatska početnica za 1. razred osnovne škole - Naš hrvatski jezik; Čitanka | E33: Ante Bežen, Marija Turk Sakač, Sanja Minarik, Gordana Vuglec | F33: radni udžbenik | G33: 0.295 | H33: =G33*N33 -> 0 | I33: 1. | J33: =L33/1.05 -> 14.08571429 | L33: 14.79 | M33: =IF(M$14<>"",0%,IF(M$12<>"",0%,IF(M$10<>"",IF(N$19<>"",13%,10%),0%))) -> 0 | O33: =L33*M33*N33 -> 0 | P33: =L33*N33 -> 0
A34: 9789533552736 | D34: RADOST ČITANJA I PISANJA 1, radna bilježnica Hrvatska početnica za 1. razred osnovne škole | E34: Ante Bežen, Marija Turk Sakač, Sanja Minarik, Gordana Vuglec | F34: radna bilježnica | G34: 0.26 | H34: =G34*N34 -> 0 | I34: 1. | J34: =L34/1.05 -> 8.571428571 | L34: 9 | M34: =IF(M$14<>"",0%,IF(M$12<>"",0%,IF(M$10<>"",IF(N$19<>"",13%,10%),0%))) -> 0 | O34: =L34*M34*N34 -> 0 | P34: =L34*N34 -> 0
E35: 2. RAZRED - NOVO
A36: 9789533554013 | B36: 6762 | C36: 4524 | D36: RADOST ČITANJA I PISANJA, 2, RAZRED, 1. SVEZAK :udžbenik za 2. razred osnovne škole | E36: Ante Bežen, Marija Turk Sakač, Sanja Minarik, Gordana Vuglec | F36: radni udžbenik | G36: 0.36 | H36: =G36*N36 -> 0 | I36: 2. | J36: =L36/1.05 -> 12.87619048 | L36: 13.52 | M36: =IF(M$14<>"",0%,IF(M$12<>"",0%,IF(M$10<>"",IF(N$19<>"",13%,10%),0%))) -> 0 | O36: =L36*M36*N36 -> 0 | P36: =L36*N36 -> 0
A37: 9789533554020 | B37: 6763 | D37: RADOST ČITANJA I PISANJA, 2. RAZRED, 2. SVEZAK : radni udžbenik za 2. razred osnovne škole | E37: Ante Bežen, Marija Turk Sakač, Sanja Minarik, Gordana Vuglec | F37: radni udžbenik | G37: 0.37 | H37: =G37*N37 -> 0 | I37: 2. | J37: =L37/1.05 -> 12.85714286 | L37: 13.5 | M37: =IF(M$14<>"",0%,IF(M$12<>"",0%,IF(M$10<>"",IF(N$19<>"",13%,10%),0%))) -> 0 | O37: =L37*M37*N37 -> 0 | P37: =L37*N37 -> 0
A38: 9789533554037 | D38: RADOST ČITANJA I PISANJA 2, radna bilježnica Hrvatska početnica za 2. razred osnovne škole | E38: Ante Bežen, Marija Turk Sakač, Sanja Minarik, Gordana Vuglec | F38: radna bilježnica | G38: 0.26 | H38: =G38*N38 -> 0 | I38: 2. | J38: =L38/1.05 -> 8.571428571 | L38: 9 | M38: =IF(M$14<>"",0%,IF(M$12<>"",0%,IF(M$10<>"",IF(N$19<>"",13%,10%),0%))) -> 0 | O38: =L38*M38*N38 -> 0 | P38: =L38*N38 -> 0
E39: 3. RAZRED
A40: 9789533554051 | B40: 6764 | C40: 4525 | D40: RADOST ČITANJA I PISANJA, 3. RAZRED, 1. SVEZAK : radni udžbenik za 3. razred osnovne škole | E40: Ante Bežen, Marija Turk Sakač, Sanja Minarik, Gordana Vuglec | F40: radni udžbenik | G40: 0.38 | H40: =G40*N40 -> 0 | I40: 3. | J40: =L40/1.05 -> 13.21904762 | L40: 13.88 | M40: =IF(M$14<>"",0%,IF(M$12<>"",0%,IF(M$10<>"",IF(N$19<>"",13%,10%),0%))) -> 0 | O40: =L40*M40*N40 -> 0 | P40: =L40*N40 -> 0
A41: 9789533554075 | B41: 6765 | D41: RADOST ČITANJA I PISANJA, 3. RAZRED, 2. SVEZAK : radni udžbenik za 3. razred osnovne škole | E41: Ante Bežen, Marija Turk Sakač, Sanja Minarik, Gordana Vuglec | F41: radni udžbenik | G41: 0.36 | H41: =G41*N41 -> 0 | I41: 3. | J41: =L41/1.05 -> 12.51428571 | L41: 13.14 | M41: =IF(M$14<>"",0%,IF(M$12<>"",0%,IF(M$10<>"",IF(N$19<>"",13%,10%),0%))) -> 0 | O41: =L41*M41*N41 -> 0 | P41: =L41*N41 -> 0
A42: 9789533554068 | D42: RADOST ČITANJA I PISANJA 3, radna bilježnica za 3. razred osnovne škole | E42: Ante Bežen, Marija Turk Sakač, Sanja Minarik, Gordana Vuglec | F42: radna bilježnica | G42: 0.26 | H42: =G42*N42 -> 0 | I42: 3. | J42: =L42/1.05 -> 8.571428571 | L42: 9 | M42: =IF(M$14<>"",0%,IF(M$12<>"",0%,IF(M$10<>"",IF(N$19<>"",13%,10%),0%))) -> 0 | O42: =L42*M42*N42 -> 0 | P42: =L42*N42 -> 0
E43: 4. RAZRED - NOVO
A44: 9789533554860 | B44: 7407 | C44: 5065 | D44: RADOST ČITANJA I PISANJA, 4., 1. SVEZAK : radni udžbenik za Hrvatski jezik u 4. razredu osnovne škole - Hrvatski jezik; Komunikacija; Književnost; Mediji | E44: Ante Bežen, Marija Turk Sakač, Gordana Miota Plešnik, Gordana Vuglec | F44: radni udžbenik | G44: 0.38 | H44: =G44*N44 -> 0 | I44: 4. | J44: =L44/1.05 -> 13.06666667 | L44: 13.72 | M44: =IF(M$14<>"",0%,IF(M$12<>"",0%,IF(M$10<>"",IF(N$19<>"",13%,10%),0%))) -> 0 | O44: =L44*M44*N44 -> 0 | P44: =L44*N44 -> 0
A45: 9789533554877 | B45: 7408 | D45: RADOST ČITANJA I PISANJA, 4., 2. SVEZAK : radni udžbenik za Hrvatski jezik u 4. razredu osnovne škole - Hrvatski jezik; Komunikacija; Književnost; Mediji | E45: Ante Bežen, Marija Turk Sakač, Gordana Miota Plešnik, Gordana Vuglec | F45: radni udžbenik | G45: 0.36 | H45: =G45*N45 -> 0 | I45: 4. | J45: =L45/1.05 -> 13.07619048 | L45: 13.73 | M45: =IF(M$14<>"",0%,IF(M$12<>"",0%,IF(M$10<>"",IF(N$19<>"",13%,10%),0%))) -> 0 | O45: =L45*M45*N45 -> 0 | P45: =L45*N45 -> 0
A46: 9789533554945 | D46: RADOST ČITANJA I PISANJA 4, radna bilježnica za 4. razred osnovne škole | E46: Ante Bežen, Marija Turk Sakač, Gordana Miota Plešnik, Gordana Vuglec | F46: radna bilježnica | G46: 0.26 | H46: =G46*N46 -> 0 | I46: 4. | J46: =L46/1.05 -> 8.571428571 | L46: 9 | M46: =IF(M$14<>"",0%,IF(M$12<>"",0%,IF(M$10<>"",IF(N$19<>"",13%,10%),0%))) -> 0 | O46: =L46*M46*N46 -> 0 | P46: =L46*N46 -> 0
D47: ENGLESKI JEZIK 1.-4.r. - I strani jezik
A48: 9781447999881 | B48: 5997 | C48: 3837 | D48: NEW ENGLISH ADVENTURE STARTER A : UDŽBENIK | E48: Regina Raczynska, Cristiana Bruni | F48: UDŽBENIK | G48: 0.32 | H48: =G48*N48 -> 0 | I48: 1. | J48: =L48/1.05 -> 10 | L48: 10.5 | M48: =IF(M$14<>"",0%,IF(M$12<>"",0%,IF(M$10<>"",IF(N$19<>"",13%,10%),0%))) -> 0 | O48: =L48*M48*N48 -> 0 | P48: =L48*N48 -> 0
A49: 9781447999874 | D49: NEW ENGLISH ADVENTURE STARTER A : radna bilježnica | E49: Regina Raczynska, Cristiana Bruni | F49: radna bilježnica | G49: 0.243 | H49: 0 | I49: 1. | J49: =L49/1.05 -> 8.095238095 | L49: 8.5 | M49: 0 | O49: 0 | P49: 0
A50: 9781292313719 | B50: 5998 | C50: 3838 | D50: POPTROPICA ENGLISH STARTER : udžbenik engleskog jezika sa pristupom digitalnim materijalima za 1. razred osnovne škole, 1. godina učenja | E50: Tessa Lochowski | F50: UDŽBENIK | G50: 0.295 | H50: 0 | I50: 1. | J50: =L50/1.05 -> 10 | L50: 10.5 | M50: 0 | O50: 0 | P50: 0
A51: 9781292092119 | D51: POPTROPICA ENGLISH STARTER : radna bilježnica | E51: Tessa Lochowski | F51: radna bilježnica | G51: 0.164 | H51: 0 | I51: 1. | J51: =L51/1.05 -> 8.095238095 | L51: 8.5 | M51: 0 | O51: 0 | P51: 0
A52: 9781292213941 9781292392622 | B52: 6760 | C52: 4522 | D52: POPTROPICA ENGLISH 1: udžbenik engleskog jezika sa pristupom digitalnim materijalima za 2. razred osnovne škole, 2. godina učenja | E52: Tessa Lochowski | F52: UDŽBENIK | G52: 0.274 | H52: 0 | I52: 2. | J52: =L52/1.05 -> 10.28571429 | L52: 10.8 | M52: 0 | O52: 0 | P52: 0
A53: 9781292091457 | D53: POPTROPICA ENGLISH 1: radna bilježnica | E53: Linnette Erocak, Tessa Lochowski; Series advisor: David Nunan | F53: radna bilježnica | G53: 0.16 | H53: 0 | I53: 2. | J53: 8.095238095 | L53: 8.5 | M53: 0 | O53: 0 | P53: 0
A54: 9781292313634 9781292392639 | B54: 6761 | C54: 4523 | D54: POPTROPICA ENGLISH 2: udžbenik engleskog jezika sa pristupom digitalnim materijalima za 3. razred osnovne škole, 3. godina učenja | E54: Sagrario Salaberri, Viv Lambert; Series advisor: David Nunan | F54: UDŽBENIK | G54: 0.3 | H54: 0 | I54: 3. | J54: 10.28571429 | L54: 10.8 | M54: 0 | O54: 0 | P54: 0
A55: 9781292091587 | D55: POPTROPICA ENGLISH 2: radna bilježnica | E55: Sagrario Salaberri, Viv Lambert; Series advisor: David Nunan | F55: radna bilježnica | G55: 0.2 | H55: 0 | I55: 3. | J55: 8.095238095 | L55: 8.5 | M55: 0 | O55: 0 | P55: 0
A56: 9781292213989 9781292392646 | B56: 7406 | C56: 5064 | D56: POPTROPICA ENGLISH 3: udžbenik engleskog jezika sa pristupom digitalnim materijalima za 4. razred osnovne škole, 4. godina učenja | E56: Sagrario Salaberri, Viv Lambert; Series advisor: David Nunan | F56: UDŽBENIK | G56: 0.29 | H56: 0 | I56: 4. | J56: 10.45714286 | L56: 10.98 | M56: 0 | O56: 0 | P56: 0
A57: 9781292091716 | D57: POPTROPICA ENGLISH 3: radna bilježnica | E57: Sagrario Salaberri, Viv Lambert; Series advisor: David Nunan | F57: radna bilježnica | G57: 0.2 | H57: 0 | I57: 4. | J57: 8.095238095 | L57: 8.5 | M57: 0 | O57: 0 | P57: 0
A58: 9781292416007 | B58: 7413 | C58: 5070 | D58: WIDER WORLD Starter : udžbenik engleskog jezika za 4. razred osnovne škole, 4. godina učenja | E58: Sandy Zervas, Catherine Bright | F58: radni udžbenik | G58: 0.33 | H58: 0 | I58: 4. | J58: 10.45714286 | L58: 10.98 | M58: 0 | O58: 0 | P58: 0
A59: 9781292178837 | D59: WIDER WORLD Starter : radna bilježnica | E59: Tasia Vassilatou, Liz Kilbey, Catherine Bright, Jennifer Heath | F59: radna bilježnica | G59: 0.25 | H59: 0 | I59: 4. | J59: 9.047619048 | L59: 9.5 | M59: 0 | O59: 0 | P59: 0
A60: 9781292107370 | D60: WIDER WORLD Starter : digitalna radna bilježnica | E60: Tasia Vassilatou, Liz Kilbey, Catherine Bright, Jennifer Heath | F60: digitalna radna bilježnica | G60: 0 | H60: 0 | I60: 4. | J60: 9.047619048 | L60: 9.5 | M60: 0 | O60: 0 | P60: 0
D61: ENGLESKI JEZIK 4. r. - II strani jezik
A62: 9781292393292 | B62: 7389 | C62: 5048 | D62: GO GETTER 1 : udžbenik engleskog jezika za 4. i/ili 5. razred osnovne skole, 1. i 2. godina učenja, 2. strani jezik | E62: Sandy Zervas, Catherine Bright | F62: UDŽBENIK | G62: 0.29 | H62: =G62*N62 -> 0 | I62: 4., 5. | J62: 10.45714286 | L62: 10.98 | M62: =IF(M$14<>"",0%,IF(M$12<>"",0%,IF(M$10<>"",IF(N$19<>"",13%,10%),0%))) -> 0 | O62: =L62*M62*N62 -> 0 | P62: =L62*N62 -> 0
A63: 9781292210001 | D63: GO GETTER 1 : radna bilježnica | E63: Liz Kilbey, Catherine Bright, Jennifer Heath | F63: radna bilježnica | G63: 0.27 | H63: =G63*N63 -> 0 | I63: 4., 5. | J63: 8.571428571 | L63: 9 | M63: 0 | O63: =L63*M63*N63 -> 0 | P63: =L63*N63 -> 0
A64: 9781292373478 | D64: Go GETTER 1 : digitalna radna bilježnica | E64: Liz Kilbey, Catherine Bright, Jennifer Heath | F64: digitalna radna bilježnica | G64: 0 | H64: =G64*N64 -> 0 | I64: 4., 5. | J64: 8.571428571 | L64: 9 | M64: 0 | O64: =L64*M64*N64 -> 0 | P64: =L64*N64 -> 0
D65: NJEMAČKI JEZIK 1.-4. r. - I strani jezik
A66: 9783191010614 | B66: 6126 | C66: 3942 | D66: JANA UND DINO 1 : udžbenik za njemački jezik u 1. razredu | E66: Manuela Georgiakaki, Michael Priesteroth | F66: UDŽBENIK | G66: 0.217 | H66: =G66*N66 -> 0 | I66: 1. | J66: 10 | L66: 10.5 | M66: =IF(M$14<>"",0%,IF(M$12<>"",0%,IF(M$10<>"",IF(N$19<>"",13%,10%),0%))) -> 0 | O66: =L66*M66*N66 -> 0 | P66: =L66*N66 -> 0
A67: 9783191110611 | D67: JANA UND DINO 1 : radna bilježnica | E67: Manuela Georgiakaki, Michael Priesteroth | F67: radna bilježnica | G67: 0.189 | H67: 0 | I67: 1. | J67: 9.523809524 | L67: 10 | M67: 0 | O67: 0 | P67: 0
A68: 9783192010613 | B68: 6753 | C68: 4515 | D68: JANA UND DINO 2 : udžbenik za njemački jezik u 2. razredu | E68: Manuela Georgiakaki, Michael Priesteroth | F68: UDŽBENIK | G68: 0.217 | H68: 0 | I68: 2. | J68: 10.28571429 | L68: 10.8 | M68: 0 | O68: 0 | P68: 0
A69: 9783192110610 | D69: JANA UND DINO 2 : radna bilježnica | E69: Manuela Georgiakaki, Michael Priesteroth | F69: radna bilježnica | G69: 0.236 | H69: 0 | I69: 2. | J69: 9.523809524 | L69: 10 | M69: 0 | O69: 0 | P69: 0
A70: 9783190015597 | B70: 6759 | C70: 4521 | D70: PAUL, LISA & CO STARTER : udžbenik za njemački jezik u 3. razredu/1. str.jez i u 4. razredu/2. str.jez. | E70: Monika Bovermann, Manuela Georgiakaki, Renate Zschärlich | F70: UDŽBENIK | G70: 0.265 | H70: 0 | I70: 3.,4. | J70: 10.28571429 | L70: 10.8 | M70: 0 | O70: 0 | P70: 0
A71: 9783190115594 | D71: PAUL, LISA & CO STARTER : radna bilježnica | E71: Monika Bovermann, Manuela Georgiakaki, Renate Zschärlich | F71: radna bilježnica | G71: 0.305 | H71: 0 | I71: 3.,4. | J71: 9.523809524 | L71: 10 | M71: 0 | O71: 0 | P71: 0
A72: 9783193015594 | B72: 7404 | C72: 5062 | D72: PAUL, LISA & CO A1/1 : udžbenik za njemački jezik u 4. razredu / 1. str.jez. | E72: Monika Bovermann, Manuela Georgiakaki, Renate Zschärlich | F72: UDŽBENIK | G72: 0.325 | H72: 0 | I72: 4. | J72: 10.45714286 | L72: 10.98 | M72: 0 | O72: 0 | P72: 0
A73: 9783193115591 | D73: PAUL, LISA & CO A1/1 : radna bilježnica | E73: Monika Bovermann, Manuela Georgiakaki, Renate Zschärlich | F73: radna bilježnica | G73: 0.336 | H73: 0 | I73: 4. | J73: 9.523809524 | L73: 10 | M73: 0 | O73: 0 | P73: 0
D74: NJEMAČKI JEZIK 4. r. - II strani jezik
A75: 9783190015597 | B75: 7405 | C75: 5063 | D75: PAUL, LISA & CO STARTER : udžbenik za njemački jezik u 3. razredu/1. str.jez i u 4. razredu/2. str.jez. | E75: Monika Bovermann, Manuela Georgiakaki, Renate Zschärlich | F75: UDŽBENIK | G75: 0.265 | H75: =G75*N75 -> 0 | I75: 3.,4. | J75: =L75/1.05 -> 10.28571429 | L75: 10.8 | M75: =IF(M$14<>"",0%,IF(M$12<>"",0%,IF(M$10<>"",IF(N$19<>"",13%,10%),0%))) -> 0 | O75: =L75*M75*N75 -> 0 | P75: =L75*N75 -> 0
A76: 9783190115594 | D76: PAUL, LISA & CO STARTER : radna bilježnica | E76: Monika Bovermann, Manuela Georgiakaki, Renate Zschärlich | F76: radna bilježnica | G76: 0.305 | H76: =G76*N76 -> 0 | I76: 3.,4. | J76: =L76/1.05 -> 9.523809524 | L76: 10 | M76: =IF(M$14<>"",0%,IF(M$12<>"",0%,IF(M$10<>"",IF(N$19<>"",13%,10%),0%))) -> 0 | O76: =L76*M76*N76 -> 0 | P76: =L76*N76 -> 0
E77: 5. RAZRED
D78: HRVATSKI JEZIK i književnost
A79: 9789533552958 | B79: 6051 | C79: 3880 | D79: HRVATSKA ČITANKA 5 : Hrvatski jezik - Čitanka za 5. razred osnovne škole | E79: Mirjana Jukić, Slavica Kovač, Iverka Kraševac, Dubravka Težak, Martina Tunuković, Martina Valec-Rebić | F79: udžbenik | G79: 0.415 | H79: =G79*N79 -> 0 | I79: 5. | J79: =L79/1.05 -> 14.9047619 | L79: 15.65 | M79: =IF(M$14<>"",0%,IF(M$12<>"",0%,IF(M$10<>"",IF(N$19<>"",13%,10%),0%))) -> 0 | O79: =L79*M79*N79 -> 0 | P79: =L79*N79 -> 0
A80: 9789533552927 | B80: 6052 | D80: HRVATSKA KRIJESNICA 5 : udžbenik iz hrvatskoga jezika za 5. razred osnovne škole | E80: Slavica Kovač, Mirjana Jukić | F80: udžbenik | G80: 0.25 | H80: =G80*N80 -> 0 | I80: 5. | J80: =L80/1.05 -> 11.78095238 | L80: 12.37 | M80: 0 | O80: =L80*M80*N80 -> 0 | P80: =L80*N80 -> 0
A81: 9789533552941 | D81: HRVATSKA KRIJESNICA 5: Radna bilježnica za jezik, komunikaciju i književnost za V. razred osnovne škole | E81: Slavica Kovač, Mirjana Jukić, Danijela Zagorec | F81: radna bilježnica | G81: 0.43 | H81: =G81*N81 -> 0 | I81: 5. | J81: =L81/1.05 -> 9.047619048 | L81: 9.5 | M81: 0 | O81: =L81*M81*N81 -> 0 | P81: =L81*N81 -> 0
A82: 9789533554228 | D82: KRIJESNICA TRENERICA 5: Nastavni listići iz hrvatskog jezika za 5. razred osnovne škole | E82: Martina Tunuković | F82: nastavni listići | G82: 0.45 | H82: =G82*N82 -> 0 | I82: 5. | J82: =L82/1.05 -> 9.523809524 | L82: 10 | M82: 0 | O82: =L82*M82*N82 -> 0 | P82: =L82*N82 -> 0
D83: HRVATSKI JEZIK - ZA UČENIKE S TEŠKOĆAMA U RAZVOJU
A84: 9789533552934 | B84: 6053 | C84: 3881 | D84: HRVATSKA KRIJESNICA : radni udžbenik za dopunski i individualizirani rad iz hrvatskog jezika za 5. razred | E84: Vesna Dunatov, Anita Petrić | F84: radna udžbenik | G84: 0.26 | H84: =G84*N84 -> 0 | I84: 5. | J84: =L84/1.05 -> 13.9047619 | L84: 14.6 | M84: 0 | O84: =L84*M84*N84 -> 0 | P84: =L84*N84 -> 0
A85: 9789533554303 | B85: 6741 | C85: 4505 | D85: HRVATSKA ČITANKA : radni udžbenik za dopunski i individualizirani rad iz hrvatskog jezika za 5. razred | E85: Vesna Dunatov, Anita Petrić, Marija Čelan Mijić, Ivana Šabić | F85: radna udžbenik | G85: 0.26 | H85: =G85*N85 -> 0 | I85: 5. | J85: =L85/1.05 -> 15.17142857 | L85: 15.93 | M85: 0 | O85: =L85*M85*N85 -> 0 | P85: =L85*N85 -> 0
D86: GEOGRAFIJA
A87: 9789533552972 | B87: 6016 | C87: 3856 | D87: PLAVI PLANET 1 : udžbenik iz geografije za 5. razred osnovne škole | E87: Lidija Borko, Tomislav Štancl | F87: udžbenik | G87: 0.28 | H87: =G87*N87 -> 0 | I87: 5. | J87: =L87/1.05 -> 8.00952381 | L87: 8.41 | M87: =IF(M$14<>"",0%,IF(M$12<>"",0%,IF(M$10<>"",IF(N$19<>"",13%,10%),0%))) -> 0 | O87: =L87*M87*N87 -> 0 | P87: =L87*N87 -> 0
A88: 9789533552989 | D88: PLAVI PLANET 1 : radna bilježnica | E88: Lidija Borko, Tomislav Štancl | F88: radna bilježnica | G88: 0.19 | H88: =G88*N88 -> 0 | I88: 5. | J88: =L88/1.05 -> 7.619047619 | L88: 8 | M88: 0 | O88: =L88*M88*N88 -> 0 | P88: =L88*N88 -> 0
D89: ENGLESKI JEZIK 5.r.
A90: 9781292415925 | B90: 5999 | C90: 3839 | D90: WIDER WORLD 1 : udžbenik engleskog jezika za 5. razred osnovne škole, 5. godina učenja | E90: Bob Hastings, Stuart McKinlay | F90: radni udžbenik | G90: 0.392 | H90: =G90*N90 -> 0 | I90: 5. | J90: =L90/1.05 -> 16.01904762 | L90: 16.82 | M90: =IF(M$14<>"",0%,IF(M$12<>"",0%,IF(M$10<>"",IF(N$19<>"",13%,10%),0%))) -> 0 | O90: =L90*M90*N90 -> 0 | P90: =L90*N90 -> 0
A91: 9781292178684 | D91: WIDER WORLD 1 : radna bilježnica | E91: Lynda Edwards | F91: radna bilježnica | G91: 0.35 | H91: 0 | I91: 5. | J91: 9.523809524 | L91: 10 | M91: 0 | O91: 0 | P91: 0
A92: 9781292106380 | D92: WIDER WORLD 1 : digitalna radna bilježnica | E92: Lynda Edwards | F92: digitalna radna bilježnica | G92: 0 | H92: 0 | I92: 5. | J92: 9.523809524 | L92: 10 | M92: 0 | O92: 0 | P92: 0
A93: 9781292393308 | B93: 5996 | C93: 3836 | D93: GO GETTER 2 : udžbenik engleskog jezika za 5 i/ili 6. razred osnovne skole, 2. i 3. godina učenja, 2. strani jezik | E93: Jayne Croxford, Graham Fruen | F93: radni udžbenik | G93: 0.315 | H93: 0 | I93: 5.,6. | J93: 10.55238095 | L93: 11.08 | M93: 0 | O93: 0 | P93: 0
A94: 9781292210032 | D94: GO GETTER 2 : radna bilježnica | E94: Jennifer Heath, Catherine Bright | F94: radna bilježnica | G94: 0.3 | H94: 0 | I94: 5.,6. | J94: 9.047619048 | L94: 9.5 | M94: 0 | O94: 0 | P94: 0
A95: 9781292373485 | D95: Go GETTER 2 : digitalna radna bilježnica | E95: Jennifer Heath with Catherine Bright | F95: digitalna radna bilježnica | G95: 0 | H95: 0 | I95: 5.,6. | J95: 9.047619048 | L95: 9.5 | M95: 0 | O95: 0 | P95: 0
D96: NJEMAČKI JEZIK 5.r.
A97: 9783195010511 | B97: 6135 | C97: 3951 | D97: BESTE FREUNDE A1.2 : udžbenik njemačkog jezika za 5. razred osnovne škole, 5. godina učenja i za 6. razred, 3. godina učenja | E97: Manuela Georgiakaki, Elisabeth Graf-Riemann, Christiane Seuthe | F97: radni udžbenik | G97: 0.243 | H97: =G97*N97 -> 0 | I97: 5.,6. | J97: =L97/1.05 -> 10.55238095 | L97: 11.08 | M97: =IF(M$14<>"",0%,IF(M$12<>"",0%,IF(M$10<>"",IF(N$19<>"",13%,10%),0%))) -> 0 | O97: =L97*M97*N97 -> 0 | P97: =L97*N97 -> 0
A98: 9783198210512 | D98: BESTE FREUNDE A1.2 : radna bilježnica | E98: Manuela Georgiakaki, Christiane Seuthe, Anja Schümann | F98: radna bilježnica | G98: 0.316 | H98: =G98*N98 -> 0 | I98: 5.,6. | J98: =L98/1.05 -> 9.523809524 | L98: 10 | M98: 0 | O98: =L98*M98*N98 -> 0 | P98: =L98*N98 -> 0
A99: 9783193010513 | B99: 6131 | C99: 3947 | D99: BESTE FREUNDE A1.1 : udžbenik njemačkog jezika za 5. razred osnovne škole, 2. godina učenja | E99: Manuela Georgiakaki, Monika Bovermann, Elisabeth Graf-Riemann, Christiane Seuthe | F99: radni udžbenik | G99: 0.239 | H99: =G99*N99 -> 0 | I99: 5. | J99: =L99/1.05 -> 10.67619048 | L99: 11.21 | M99: 0 | O99: =L99*M99*N99 -> 0 | P99: =L99*N99 -> 0
A100: 9783197210513 | D100: BESTE FREUNDE A1.1 : radna bilježnica s audio-Cdom | E100: Manuela Georgiakaki, Monika Bovermann, Christiane Seuthe, Anja Schümann | F100: radna bilježnica | G100: 0.314 | H100: =G100*N100 -> 0 | I100: 5. | J100: =L100/1.05 -> 9.523809524 | L100: 10 | M100: 0 | O100: =L100*M100*N100 -> 0 | P100: =L100*N100 -> 0
E101: 6. RAZRED
D102: HRVATSKI JEZIK i KNJIŽEVNOST
A103: 9789533554136 | B103: 6742 | C103: 4506 | D103: HRVATSKA ČITANKA 6 : Hrvatski jezik - Čitanka za 6. razred osnovne škole | E103: Mirjana Jukić, Slavica Kovač, Iverka Kraševac, Dubravka Težak, Martina Tunuković, Martina Valec-Rebić | F103: udžbenik | G103: 0.63 | H103: =G103*N103 -> 0 | I103: 6. | J103: =L103/1.05 -> 14.9047619 | L103: 15.65 | M103: =IF(M$14<>"",0%,IF(M$12<>"",0%,IF(M$10<>"",IF(N$19<>"",13%,10%),0%))) -> 0 | O103: =L103*M103*N103 -> 0 | P103: =L103*N103 -> 0
A104: 9789533554099 | B104: 6743 | D104: HRVATSKA KRIJESNICA 6 : udžbenik iz hrvatskoga jezika za 6. razred osnovne škole | E104: Slavica Kovač, Mirjana Jukić | F104: udžbenik | G104: 0.35 | H104: =G104*N104 -> 0 | I104: 6. | J104: =L104/1.05 -> 11.48571429 | L104: 12.06 | M104: 0 | O104: =L104*M104*N104 -> 0 | P104: =L104*N104 -> 0
A105: 9789533554174 | D105: HRVATSKA KRIJESNICA 6: Radna bilježnica za jezik, komunikaciju i književnost za VI. razred osnovne škole | E105: Slavica Kovač, Mirjana Jukić, Danijela Zagorec | F105: radna bilježnica | G105: 0.333 | H105: =G105*N105 -> 0 | I105: 6. | J105: =L105/1.05 -> 9.047619048 | L105: 9.5 | M105: 0 | O105: =L105*M105*N105 -> 0 | P105: =L105*N105 -> 0
A106: 9789533554365 | D106: KRIJESNICA TRENERICA 6: Nastavni listići iz hrvatskog jezika za 6. razred osnovne škole | E106: Martina Tunuković | F106: nastavni listići | G106: 0.45 | H106: =G106*N106 -> 0 | I106: 6. | J106: =L106/1.05 -> 9.523809524 | L106: 10 | M106: 0 | O106: =L106*M106*N106 -> 0 | P106: =L106*N106 -> 0
D107: HRVATSKI JEZIK - ZA UČENIKE S TEŠKOĆAMA U RAZVOJU
A108: 9789533554112 | B108: 6748 | C108: 4510 | D108: HRVATSKA KRIJESNICA : radni udžbenik za dopunski i individualizirani rad iz hrvatskog jezika za 6. razred | E108: Vesna Dunatov, Anita Petrić | F108: radna udžbenik | G108: 0.26 | H108: =G108*N108 -> 0 | I108: 6. | J108: =L108/1.05 -> 13.9047619 | L108: 14.6 | M108: =IF(M$14<>"",0%,IF(M$12<>"",0%,IF(M$10<>"",IF(N$19<>"",13%,10%),0%))) -> 0 | O108: =L108*M108*N108 -> 0 | P108: =L108*N108 -> 0
A109: 9789533554150 | B109: 6744 | C109: 4507 | D109: HRVATSKA ČITANKA : radni udžbenik za dopunski i individualizirani rad iz hrvatskog jezika za 6. razred | E109: Vesna Dunatov, Anita Petrić | F109: radna udžbenik | G109: 0.26 | H109: =G109*N109 -> 0 | I109: 6. | J109: =L109/1.05 -> 15.17142857 | L109: 15.93 | M109: 0 | O109: =L109*M109*N109 -> 0 | P109: =L109*N109 -> 0
E110: ENGLESKI JEZIK 6.r.
A111: 9781292393315 | B111: 6736 | C111: 4500 | D111: GO GETTER 3 : udžbenik iz engleskog jezika za 6. i/ili 7 razred osnovne škole, 3. i 4. godina učenja, 2. strani jezik | E111: Sandy Zervas, Catherine Bright | F111: udžbenik | G111: 0.3 | H111: =G111*N111 -> 0 | I111: 6., 7. | J111: =L111/1.05 -> 10.55238095 | L111: 11.08 | M111: =IF(M$14<>"",0%,IF(M$12<>"",0%,IF(M$10<>"",IF(N$19<>"",13%,10%),0%))) -> 0 | O111: =L111*M111*N111 -> 0 | P111: =L111*N111 -> 0
A112: 9781292210063 | D112: GO GETTER 3 : radna bilježnica | E112: Jennifer Heath with Catherine Bright | F112: radna bilježnica | G112: 0.27 | H112: 0 | I112: 6., 7. | J112: 9.047619048 | L112: 9.5 | M112: 0 | O112: 0 | P112: 0
A113: 9781292373492 | D113: GO GETTER 3 : digitalna radna bilježnica | E113: Jennifer Heath with Catherine Bright | F113: digitalna radna bilježnica | G113: 0 | H113: 0 | I113: 6., 7. | J113: 9.047619048 | L113: 9.5 | M113: 0 | O113: 0 | P113: 0
A114: 9781292415932 | B114: 6771 | C114: 4531 | D114: WIDER WORLD 2 - udžbenik engleskog jezika za 6. razred osnovne škole, 6. godina učenja | E114: Bob Hastings, Stuart McKinlay | F114: udžbenik | G114: 0.37 | H114: 0 | I114: 6. | J114: 15.83809524 | L114: 16.63 | M114: 0 | O114: 0 | P114: 0
A115: 9781292178721 | D115: WIDER WORLD 2 - radna bilježnica | E115: Lynda Edwards | F115: radna bilježnica | G115: 0.33 | H115: 0 | I115: 6. | J115: 9.523809524 | L115: 10 | M115: 0 | O115: 0 | P115: 0
A116: 9781292106625 | D116: WIDER WORLD 2 - digitalna radna bilježnica | E116: Lynda Edwards | F116: digitalna radna bilježnica | G116: 0 | H116: 0 | I116: 6. | J116: 9.523809524 | L116: 10 | M116: 0 | O116: 0 | P116: 0
D117: NJEMAČKI JEZIK 6.r.
A118: 9783193010520 | B118: 6723 | C118: 4487 | D118: BESTE FREUNDE A2.1 : udžbenik njemačkog jezika za 6. razred, 6. godina učenja i za 7. razred, 4. godina učenja | E118: Manuela Georgiakaki, Elisabeth Graf-Riemann, Anja Schümann, Christiane Seuthe | F118: udžbenik | G118: 0.238 | H118: =G118*N118 -> 0 | I118: 6., 7. | J118: 10.55238095 | L118: 11.08 | M118: =IF(M$14<>"",0%,IF(M$12<>"",0%,IF(M$10<>"",IF(N$19<>"",13%,10%),0%))) -> 0 | O118: =L118*M118*N118 -> 0 | P118: =L118*N118 -> 0
A119: 9783194010529 9781397210520 | D119: BESTE FREUNDE A2.1 :radna bilježnica s audio-Cdom | E119: Manuela Georgiakaki, Christiane Seuthe, Anja Schümann | F119: radna bilježnica | G119: 0.334 | H119: =G119*N119 -> 0 | I119: 6., 7. | J119: 9.523809524 | L119: 10 | M119: 0 | O119: =L119*M119*N119 -> 0 | P119: =L119*N119 -> 0
A120: 9783195010511 | B120: 6135 | C120: 3951 | D120: BESTE FREUNDE A1.2 : udžbenik njemačkog jezika za 5. razred osnovne škole, 5. godina učenja i za 6. razred, 3. godina učenja | E120: Manuela Georgiakaki, Elisabeth Graf-Riemann, Christiane Seuthe | F120: radni udžbenik | G120: 0.243 | H120: =G120*N120 -> 0 | I120: 5.,6. | J120: 10.55238095 | L120: 11.08 | M120: 0 | O120: =L120*M120*N120 -> 0 | P120: =L120*N120 -> 0
A121: 9783198210512 | D121: BESTE FREUNDE A1.2 : radna bilježnica | E121: Manuela Georgiakaki, Christiane Seuthe, Anja Schümann | F121: radna bilježnica | G121: 0.316 | H121: =G121*N121 -> 0 | I121: 5.,6. | J121: 9.523809524 | L121: 10 | M121: 0 | O121: =L121*M121*N121 -> 0 | P121: =L121*N121 -> 0
E122: 7. RAZRED
D123: HRVATSKI JEZIK I KNJIŽEVNOST
A124: 9789533554143 | B124: 6745 | C124: 4508 | D124: HRVATSKA ČITANKA 7 : Hrvatski jezik - Čitanka za 7. razred osnovne škole | E124: Mirjana Jukić, Slavica Kovač, Iverka Kraševac, Dubravka Težak, Martina Tunuković, Martina Valec-Rebić | F124: udžbenik | G124: 0.415 | H124: =G124*N124 -> 0 | I124: 7. | J124: =L124/1.05 -> 12.76190476 | L124: 13.4 | M124: =IF(M$14<>"",0%,IF(M$12<>"",0%,IF(M$10<>"",IF(N$19<>"",13%,10%),0%))) -> 0 | O124: =L124*M124*N124 -> 0 | P124: =L124*N124 -> 0
A125: 9789533554105 | B125: 6746 | D125: HRVATSKA KRIJESNICA 7 : udžbenik iz hrvatskoga jezika za 7. razred osnovne škole | E125: Slavica Kovač, Mirjana Jukić | F125: udžbenik | G125: 0.25 | H125: =G125*N125 -> 0 | I125: 7. | J125: =L125/1.05 -> 9.80952381 | L125: 10.3 | M125: 0 | O125: =L125*M125*N125 -> 0 | P125: =L125*N125 -> 0
A126: 9789533554181 | D126: HRVATSKA KRIJESNICA 7: Radna bilježnica za jezik, komunikaciju i književnost za VIi. razred osnovne škole | E126: Slavica Kovač, Mirjana Jukić, Danijela Zagorec | F126: radna bilježnica | G126: 0.43 | H126: =G126*N126 -> 0 | I126: 7. | J126: =L126/1.05 -> 9.523809524 | L126: 10 | M126: 0 | O126: =L126*M126*N126 -> 0 | P126: =L126*N126 -> 0
A127: 9789533554372 | D127: KRIJESNICA TRENERICA 7: Nastavni listići iz hrvatskog jezika za 7. razred osnovne škole | E127: Martina Tunuković | F127: nastavni listići | G127: 0.45 | H127: =G127*N127 -> 0 | I127: 7. | J127: =L127/1.05 -> 9.523809524 | L127: 10 | M127: 0 | O127: =L127*M127*N127 -> 0 | P127: =L127*N127 -> 0
D128: HRVATSKI JEZIK - ZA UČENIKE S TEŠKOĆAMA U RAZVOJU
A129: 9789533554129 | B129: 6749 | C129: 4511 | D129: HRVATSKA KRIJESNICA : radni udžbenik za dopunski i individualizirani rad iz hrvatskog jezika za 7. razred | E129: Vesna Dunatov, Anita Petrić | F129: radna udžbenik | G129: 0.26 | H129: =G129*N129 -> 0 | I129: 7. | J129: =L129/1.05 -> 13.9047619 | L129: 14.6 | M129: =IF(M$14<>"",0%,IF(M$12<>"",0%,IF(M$10<>"",IF(N$19<>"",13%,10%),0%))) -> 0 | O129: =L129*M129*N129 -> 0 | P129: =L129*N129 -> 0
A130: 9789533554167 | B130: 6747 | C130: 4509 | D130: HRVATSKA ČITANKA : radni udžbenik za dopunski i individualizirani rad iz hrvatskog jezika za 7. razred | E130: Vesna Dunatov, Anita Petrić | F130: radna udžbenik | G130: 0.26 | H130: =G130*N130 -> 0 | I130: 7. | J130: =L130/1.05 -> 15.17142857 | L130: 15.93 | M130: 0 | O130: =L130*M130*N130 -> 0 | P130: =L130*N130 -> 0
D131: ENGLESKI JEZIK 7.r.
A132: 9781292393322 | B132: 6737 | C132: 4501 | D132: GO GETTER 4 - udžbenik iz engleskog jezika za 7 i/ili 8. razred osnovne škole, 4. i 5. godina učenja, 2. strani jezik | E132: Jayne Croxford, Graham Fruen | F132: udžbenik | G132: 0.34 | H132: =G132*N132 -> 0 | I132: 7., 8. | J132: =L132/1.05 -> 11.28571429 | L132: 11.85 | M132: =IF(M$14<>"",0%,IF(M$12<>"",0%,IF(M$10<>"",IF(N$19<>"",13%,10%),0%))) -> 0 | O132: =L132*M132*N132 -> 0 | P132: =L132*N132 -> 0
A133: 9781292210094 | D133: GO GETTER 4 - radna bilježnica | E133: Tasia Vassilatou with Catherine Bright and Jennifer Heath | F133: radna bilježnica | G133: 0.28 | H133: 0 | I133: 7., 8. | J133: 9.047619048 | L133: 9.5 | M133: 0 | O133: 0 | P133: 0
A134: 9781292373508 | D134: GO GETTER 4 - digitalna radna bilježnica | E134: Tasia Vassilatou with Catherine Bright and Jennifer Heath | F134: digitalna radna bilježnica | G134: 0 | H134: 0 | I134: 7., 8. | J134: 9.047619048 | L134: 9.5 | M134: 0 | O134: 0 | P134: 0
A135: 9781292415987 | B135: 6772 | C135: 4532 | D135: WIDER WORLD 3 - udžbenik iz engleskog jezika za 7. razred, 7. godina učenja | E135: Carolyn Barraclough, Suzanne Gaynor | F135: udžbenik | G135: 0.37 | H135: 0 | I135: 7. | J135: 16.92380952 | L135: 17.77 | M135: 0 | O135: 0 | P135: 0
A136: 9781292178769 | D136: WIDER WORLD 3 - radna bilježnica | E136: Sheila Dignen | F136: radna bilježnica | G136: 0.34 | H136: 0 | I136: 7. | J136: 9.523809524 | L136: 10 | M136: 0 | O136: 0 | P136: 0
A137: 9781292106861 | D137: WIDER WORLD 3 - digitalna radna bilježnica | E137: Sheila Dignen | F137: digitalna radna bilježnica | G137: 0 | H137: 0 | I137: 7. | J137: 9.523809524 | L137: 10 | M137: 0 | O137: 0 | P137: 0
D138: NJEMAČKI JEZIK 7.R.
A139: 9783195010528 | B139: 6724 | C139: 4488 | D139: BESTE FREUNDE A2.2 : udžbenik njemačkog jezika za 7. razred, 7. godina učenja i za 8. razred, 5. godina učenja | E139: Manuela Georgiakaki, Elisabeth Graf-Riemann, Anja Schümann, Christiane Seuthe | F139: udžbenik | G139: 0.242 | H139: =G139*N139 -> 0 | I139: 7. i 8. | J139: 11.28571429 | L139: 11.85 | M139: =IF(M$14<>"",0%,IF(M$12<>"",0%,IF(M$10<>"",IF(N$19<>"",13%,10%),0%))) -> 0 | O139: =L139*M139*N139 -> 0 | P139: =L139*N139 -> 0
A140: 9783196010527 9783198210529 | D140: BESTE FREUNDE A2.2 : radna bilježnica | E140: Manuela Georgiakaki, Anja Schümann, Christiane Seuthe | F140: radna bilježnica | G140: 0.323 | H140: =G140*N140 -> 0 | I140: 7. i 8. | J140: 9.523809524 | L140: 10 | M140: 0 | O140: =L140*M140*N140 -> 0 | P140: =L140*N140 -> 0
A141: 9783193010520 | B141: 6723 | C141: 4487 | D141: BESTE FREUNDE A2.1 : udžbenik njemačkog jezika za 6. razred, 6. godina učenja i za 7. razred, 4. godina učenja | E141: Manuela Georgiakaki, Elisabeth Graf-Riemann, Anja Schümann, Christiane Seuthe | F141: udžbenik | G141: 0.24 | H141: =G141*N141 -> 0 | I141: 6., 7. | J141: 10.55238095 | L141: 11.08 | M141: 0 | O141: =L141*M141*N141 -> 0 | P141: =L141*N141 -> 0
A142: 9783194010529 9783197210520 | D142: BESTE FREUNDE A2.1 :radna bilježnica s audio-Cdom | E142: Manuela Georgiakaki, Christiane Seuthe, Anja Schümann | F142: radna bilježnica | G142: 0.334 | H142: =G142*N142 -> 0 | I142: 6., 7. | J142: 9.523809524 | L142: 10 | M142: 0 | O142: =L142*M142*N142 -> 0 | P142: =L142*N142 -> 0
E143: 8. RAZRED
D144: HRVATSKI JEZIK I KNJIŽEVNOST
A145: 9789533554983 | B145: 7394 | C145: 5053 | D145: HRVATSKA ČITANKA 8 : Hrvatski jezik - čitanka za 8. razred osnovne škole | E145: Mirjana Jukić, Slavica Kovač, Iverka Kraševac, Dubravka Težak, Martina Tunuković, Martina Valec-Rebić | F145: udžbenik | G145: 0.415 | H145: =G145*N145 -> 0 | I145: 8. | J145: =L145/1.05 -> 12.76190476 | L145: 13.4 | M145: =IF(M$14<>"",0%,IF(M$12<>"",0%,IF(M$10<>"",IF(N$19<>"",13%,10%),0%))) -> 0 | O145: =L145*M145*N145 -> 0 | P145: =L145*N145 -> 0
A146: 9789533554969 | B146: 7395 | D146: HRVATSKA KRIJESNICA 8: udžbenik iz hrvatskoga jezika za 8. razred osnovne škole | E146: Slavica Kovač, Mirjana Jukić | F146: udžbenik | G146: 0.25 | H146: =G146*N146 -> 0 | I146: 8. | J146: =L146/1.05 -> 10.16190476 | L146: 10.67 | M146: 0 | O146: =L146*M146*N146 -> 0 | P146: =L146*N146 -> 0
A147: 9789533554976 | D147: HRVATSKA KRIJESNICA 8: Radna bilježnica za jezik, komunikaciju i književnost za VIII. razred osnovne škole | E147: Slavica Kovač, Mirjana Jukić, Danijela Zagorec | F147: radna bilježnica | G147: 0.43 | H147: =G147*N147 -> 0 | I147: 8. | J147: =L147/1.05 -> 10 | L147: 10.5 | M147: 0 | O147: =L147*M147*N147 -> 0 | P147: =L147*N147 -> 0
A148: 9789533554990 | D148: KRIJESNICA TRENERICA 8: Nastavni listići iz hrvatskog jezika za 8. razred osnovne škole | E148: Martina Tunuković | F148: nastavni listići | G148: 0.45 | H148: =G148*N148 -> 0 | I148: 8. | J148: =L148/1.05 -> 9.523809524 | L148: 10 | M148: 0 | O148: =L148*M148*N148 -> 0 | P148: =L148*N148 -> 0
D149: HRVATSKI JEZIK - ZA UČENIKE S TEŠKOĆAMA U RAZVOJU
A150: 9789533555034 | B150: 7396 | C150: 5054 | D150: HRVATSKA ČITANKA 8: radni udžbenik za dopunski i individualizirani rad iz hrvatskog jezika za 8. razred osnovne škole | E150: Suzana Ruško, Marija Čelan-Mijić, Ivana Šabić | F150: radni udžbenik | G150: 0.26 | H150: =G150*N150 -> 0 | I150: 8. | J150: =L150/1.05 -> 15.17142857 | L150: 15.93 | M150: =IF(M$14<>"",0%,IF(M$12<>"",0%,IF(M$10<>"",IF(N$19<>"",13%,10%),0%))) -> 0 | O150: =L150*M150*N150 -> 0 | P150: =L150*N150 -> 0
A151: 9789533555041 | B151: 7397 | C151: 5055 | D151: HRVATSKA KRIJESNICA 8: radni udžbenik za dopunski i individualizirani rad iz hrvatskog jezika za 8. razred osnovne škole | E151: Suzana Ruško, Marija Čelan-Mijić, Ivana Šabić | F151: radni udžbenik | G151: 0.26 | H151: =G151*N151 -> 0 | I151: 8. | J151: =L151/1.05 -> 13.9047619 | L151: 14.6 | M151: 0 | O151: =L151*M151*N151 -> 0 | P151: =L151*N151 -> 0
D152: ENGLESKI JEZIK 8.r.
A153: 9781292415994 | B153: 7412 | C153: 5069 | D153: WIDER WORLD 4 - udžbenik iz engleskog jezika za 8. razred, 8. godina učenja | E153: Suzanne Gaynor, Kathryn Alevizos, Carolyn Barraclough | F153: udžbenik | G153: 0.38 | H153: =G153*N153 -> 0 | I153: 8. | J153: =L153/1.05 -> 17.19047619 | L153: 18.05 | M153: =IF(M$14<>"",0%,IF(M$12<>"",0%,IF(M$10<>"",IF(N$19<>"",13%,10%),0%))) -> 0 | O153: =L153*M153*N153 -> 0 | P153: =L153*N153 -> 0
A154: 9781292178806 | D154: WIDER WORLD 4 - radna bilježnica | E154: Damian Williams | F154: radna bilježnica | G154: 0.35 | H154: =G154*N154 -> 0 | I154: 8. | J154: =L154/1.05 -> 9.523809524 | L154: 10 | M154: 0 | O154: =L154*M154*N154 -> 0 | P154: =L154*N154 -> 0
A155: 9781292107103 | D155: WIDER WORLD 4 - digitalna radna bilježnica | E155: Damian Williams | F155: digitalna radna bilježnica | G155: 0 | H155: =G155*N155 -> 0 | I155: 8. | J155: =L155/1.05 -> 9.523809524 | L155: 10 | M155: 0 | O155: =L155*M155*N155 -> 0 | P155: =L155*N155 -> 0
D156: NJEMAČKI JEZIK 8.R.
A157: 9783193010537 | B157: 7381 | C157: 5040 | D157: BESTE FREUNDE B1.1 : udžbenik njemačkog jezika za 8. razred, 8. godina učenja | E157: Manuela Georgiakaki, Elisabeth Graf-Riemann, Anja Schümann, Christiane Seuthe | F157: udžbenik | G157: 0.238 | H157: =G157*N157 -> 0 | I157: 8. | J157: =L157/1.05 -> 17.19047619 | L157: 18.05 | M157: =IF(M$14<>"",0%,IF(M$12<>"",0%,IF(M$10<>"",IF(N$19<>"",13%,10%),0%))) -> 0 | O157: =L157*M157*N157 -> 0 | P157: =L157*N157 -> 0
A158: 9783197210537 | D158: BESTE FREUNDE B1.1 : radna bilježnica s audio-Cdom | E158: Manuela Georgiakaki, Anja Schümann, Christiane Seuthe | F158: radna bilježnica | G158: 0.359 | H158: =G158*N158 -> 0 | I158: 8. | J158: =L158/1.05 -> 9.523809524 | L158: 10 | M158: 0 | O158: =L158*M158*N158 -> 0 | P158: =L158*N158 -> 0
A159: 9783195010528 | B159: 7380 | C159: 5039 | D159: BESTE FREUNDE A2.2 : udžbenik njemačkog jezika za 7. razred, 7. godina učenja i za 8. razred, 5. godina učenja | E159: Manuela Georgiakaki, Elisabeth Graf-Riemann, Anja Schümann, Christiane Seuthe | F159: udžbenik | G159: 0.241 | H159: =G159*N159 -> 0 | I159: 7., 8. | J159: =L159/1.05 -> 11.28571429 | L159: 11.85 | M159: 0 | O159: =L159*M159*N159 -> 0 | P159: =L159*N159 -> 0
A160: 9783196010527 9783198210529 | D160: BESTE FREUNDE A2.2 : radna bilježnica | E160: Manuela Georgiakaki, Anja Schümann, Christiane Seuthe | F160: radna bilježnica | G160: 0.323 | H160: =G160*N160 -> 0 | I160: 7., 8. | J160: =L160/1.05 -> 9.523809524 | L160: 10 | M160: 0 | O160: =L160*M160*N160 -> 0 | P160: =L160*N160 -> 0
D161: Pomoćna nastavna sredstva / Priručnici
A162: 9789533556901 | D162: EMPATIJA SLUŠANJE SRCEM | E162: Rashmi Sirdeshpande | F162: Priručnik | G162: 0.3 | H162: =G162*N162 -> 0 | J162: =L162/1.05 -> 9.428571429 | L162: 9.9 | M162: =IF(M$14<>"",15%,IF(M$12<>"",15%,IF(M$10<>"",IF(N$19<>"",28%,25%),0%))) -> 0.15 | O162: =L162*M162*N162 -> 0 | P162: =L162*N162 -> 0
A163: 9789533556871 | D163: ARIJADNINA NIT | E163: Branka Barčot, Anita Hrnjak, Lidija Milković | F163: Priručnik | G163: 0.47 | H163: 0 | J163: =L163/1.05 -> 18.95238095 | L163: 19.9 | M163: =IF(M$14<>"",15%,IF(M$12<>"",15%,IF(M$10<>"",IF(N$19<>"",28%,25%),0%))) -> 0.15 | O163: 0 | P163: 0
A164: 9789533557588 | D164: VELIKA VAŽNOST MALIH PRIČA | E164: Anda Bukvić Pažin, Marija Ott Franolić | F164: Priručnik | G164: 0.54 | H164: 0 | J164: 22.76190476 | L164: 23.9 | M164: 0.15 | O164: 0 | P164: 0
A165: 9789533557694 | D165: ŠTO JE ŠTO U NASTAVI - odgovori na pitanja učitelja | E165: Marijana Češi | F165: Priručnik | G165: 0.36 | H165: 0 | J165: 18.95238095 | L165: 19.9 | M165: 0.15 | O165: 0 | P165: 0
A166: 9789533039770 | D166: UČIM I VESELIM SE | E166: Jasna Relja | F166: Priručnik | G166: 0.501 | H166: 0 | J166: 12.51428571 | L166: 13.14 | M166: 0.15 | O166: 0 | P166: 0
A167: 9789533550152 | D167: UČIM I SURAĐUJEM | E167: Jasna Relja | F167: Priručnik | G167: 0.374 | H167: 0 | J167: 11.24761905 | L167: 11.81 | M167: 0.15 | O167: 0 | P167: 0
A168: 9789533550626 | D168: IGRE U PROSTORU I VREMENU | E168: Maja Vincelj, Sanja Lanc | F168: Priručnik | G168: 0.62 | H168: 0 | J168: 15.03809524 | L168: 15.79 | M168: 0.15 | O168: 0 | P168: 0
A169: 9789533557625 | D169: KRIJESNICA SVEZNALICA | E169: Slavica Kovač, Martina Valec Rebić | F169: Priručnik | G169: 0.7 | H169: 0 | I169: 5.-8. | J169: 19.04761905 | L169: 20 | M169: 0.15 | O169: 0 | P169: 0
A170: 9789533036434 | D170: HRVATSKA KRIJESNICA PONAVLJALICA | E170: Mirjana Jukić, Slavica Kovač | F170: Priručnik | G170: 0.36 | H170: 0 | J170: 5.057142857 | L170: 5.31 | M170: 0.15 | O170: 0 | P170: 0
A171: 9789533036373 | D171: GLAGOLJICA ZA OSNOVCE | E171: Martina Valec Rebić | F171: Priručnik | G171: 0.24 | H171: 0 | I171: 5.- 8. | J171: 9.99047619 | L171: 10.49 | M171: 0.15 | O171: 0 | P171: 0
A172: 9789533552750 | D172: ČITANJEM DO (SPO)RAZUMIJEVANJA - Od čitalačke pismenosti do čitateljske sposobnosti | E172: Anita Peti-Stantić | F172: Priručnik | G172: 0.8 | H172: 0 | J172: 17.57142857 | L172: 18.45 | M172: 0.15 | O172: 0 | P172: 0
A173: 9789533552859 | D173: IZAZOVI UČENJA STRANOGA JEZIKA U OSNOVNOJ ŠKOLI | E173: Yvonne Vrhovec i suradnice | F173: Priručnik | G173: 0.872 | H173: 0 | J173: 22.62857143 | L173: 23.76 | M173: 0.15 | O173: 0 | P173: 0
E174: SREDNJE ŠKOLE (Gimnazije i strukovne škole)
D175: ENGLESKI JEZIK
A176: 9781292415772 | B176: 6292 8001 | C176: 4095 5590 | D176: FOCUS 1 2nd edition : udžbenik engleskog jezika | E176: Patricia Reilly, Marta Uminska, Tomasz Siuta | F176: udžbenik | G176: 0.46 | H176: =G176*N176 -> 0 | I176: 1.,2. | J176: =L176/1.05 -> 18.39047619 | L176: 19.31 | M176: =IF(M$14<>"",0%,IF(M$12<>"",0%,IF(M$10<>"",IF(N$19<>"",16%,13%),0%))) -> 0 | O176: =L176*M176*N176 -> 0 | P176: =L176*N176 -> 0
A177: 9781292233840 | D177: FOCUS 1 2nd edition : radna bilježnica | E177: Rod Fricker, Anna Osborn, Angela Bandis | F177: radna bilježnica | G177: 0.31 | H177: 0 | I177: 1.,2. | J177: 10.66666667 | L177: 11.2 | M177: 0 | O177: 0 | P177: 0
A178: 9781292288307 | D178: FOCUS 1 2nd edition : digitalna radna bilježnica | E178: Rod Fricker, Anna Osborn, Angela Bandis | F178: digitalna radna bilježnica | G178: 0 | H178: 0 | I178: 1.,2. | J178: 10.66666667 | L178: 11.2 | M178: 0 | O178: 0 | P178: 0
A179: 9781292415826 | B179: 6295 8002 | C179: 4098 5591 | D179: FOCUS 2 2nd edition: udžbenik engleskog jezika | E179: Sue Kay, Vaughan Jones, Daniel Brayshaw | F179: udžbenik | G179: 0.49 | H179: 0 | I179: 2.,3. | J179: 18.39047619 | L179: 19.31 | M179: 0 | O179: 0 | P179: 0
A180: 9781292233932 | D180: FOCUS 2 2nd edition: radna bilježnica | E180: Daniel Brayshaw, Dean Russell, Anna Osborn, Amanda Davies | F180: radna bilježnica | G180: 0.351 | H180: 0 | I180: 2.,3. | J180: 10.66666667 | L180: 11.2 | M180: 0 | O180: 0 | P180: 0
A181: 9781292288314 | D181: FOCUS 2 2nd edition: digitalna radna bilježnica | E181: Daniel Brayshaw, Dean Russell, Anna Osborn, Amanda Davies | F181: digitalna radna bilježnica | G181: 0 | H181: 0 | I181: 2.,3. | J181: 10.66666667 | L181: 11.2 | M181: 0 | O181: 0 | P181: 0
A182: 9781292415833 | B182: 6733 7386 8003 | C182: 4497 5045 5592 | D182: FOCUS 3 2nd edition: udžbenik engleskog jezika | E182: Sue Kay, Vaughan Jones, Daniel Brayshaw | F182: udžbenik | G182: 0.49 | H182: 0 | I182: 2.,3., 4. | J182: 18.39047619 | L182: 19.31 | M182: 0 | O182: 0 | P182: 0
A183: 9781292234021 | D183: FOCUS 3 2nd edition: radna bilježnica | E183: Daniel Brayshaw, Dean Russell, Anna Osborn, Amanda Davies | F183: radna bilježnica | G183: 0.47 | H183: 0 | I183: 2.,3., 4. | J183: 10.66666667 | L183: 11.2 | M183: 0 | O183: 0 | P183: 0
A184: 9781292288321 | D184: FOCUS 3 2nd edition: digitalna radna bilježnica | E184: Daniel Brayshaw, Dean Russell, Anna Osborn, Amanda Davies | F184: digitalna radna bilježnica | G184: 0 | H184: 0 | I184: 2.,3., 4. | J184: 10.66666667 | L184: 11.2 | M184: 0 | O184: 0 | P184: 0
A185: 9781292415840 | B185: 6734 7387 | C185: 4498 5046 | D185: FOCUS 4 2nd edition: udžbenik engleskog jezika | E185: Sue Key, Vaughan Jones, Daniel Brayshaw, Beata Trapnell, Dean Russell | F185: udžbenik | G185: 0.55 | H185: 0 | I185: 2.,3., 4. | J185: 18.39047619 | L185: 19.31 | M185: 0 | O185: 0 | P185: 0
A186: 9781292234113 | D186: FOCUS 4 2nd edition: radna bilježnica | E186: Daniel Brayshaw, Angela Bandis, Bartosz Michalowski, Beata Trapnell, David Byrne, Amanda Davis | F186: radna bilježnica | G186: 0.51 | H186: 0 | I186: 2.,3., 4. | J186: 10.66666667 | L186: 11.2 | M186: 0 | O186: 0 | P186: 0
A187: 9781292288338 | D187: FOCUS 4 2nd edition: digitalna radna bilježnica | E187: Daniel Brayshaw, Angela Bandis, Bartosz Michalowski, Beata Trapnell, David Byrne, Amanda Davis | F187: digitalna radna bilježnica | G187: 0 | H187: 0 | I187: 2.,3., 4. | J187: 10.66666667 | L187: 11.2 | M187: 0 | O187: 0 | P187: 0
A188: 9781292415918 | B188: 7388 | C188: 5047 | D188: FOCUS 5 2nd edition: udžbenik engleskog jezika | E188: Sue Kay, Vaughan Jones, Monika Berlis, Heather Jones, Daniel Brayshaw, Dean Russell, Amanda Davies | F188: udžbenik | G188: 0.52 | H188: 0 | I188: 4. | J188: 18.39047619 | L188: 19.31 | M188: 0 | O188: 0 | P188: 0
A189: 9781292288406 | D189: FOCUS 5 2nd edition: radna bilježnica | E189: Daniel Brayshaw, Tomasz Siuta, Beata Trapnell, Dean Russell | F189: radna bilježnica | G189: 0.35 | H189: 0 | I189: 4. | J189: 10.66666667 | L189: 11.2 | M189: 0 | O189: 0 | P189: 0
A190: 9781292288345 | D190: FOCUS 5 2nd edition: digitalna radna bilježnica | E190: Daniel Brayshaw, Tomasz Siuta, Beata Trapnell, Dean Russell | F190: digitalna radna bilježnica | G190: 0 | H190: 0 | I190: 4. | J190: 10.66666667 | L190: 11.2 | M190: 0 | O190: 0 | P190: 0
A191: 9781292300894 9781292415574 | B191: 6738 8004 | C191: 4502 5593 | D191: HIGH NOTE 2: udžbenik | E191: Bob Hastings, Stuart McKinlay, Rod Fricker, Dean Russell, Beata Trapnell | F191: udžbenik | G191: 0.51 | H191: 0 | I191: 2.,3. | J191: 19.96190476 | L191: 20.96 | M191: 0 | O191: 0 | P191: 0
A192: 9781292209494 | D192: HIGH NOTE 2: radna bilježnica | E192: Rod Fricker | F192: radna bilježnica | G192: 0.34 | H192: 0 | I192: 2.,3. | J192: 12.38095238 | L192: 13 | M192: 0 | O192: 0 | P192: 0
A193: 9781292209425 | D193: HIGH NOTE 2: digitalna radna bilježnica | E193: Rod Fricker | F193: digitalna radna bilježnica | G193: 0 | H193: 0 | I193: 2.,3. | J193: 12.38095238 | L193: 13 | M193: 0 | O193: 0 | P193: 0
A194: 9781292415642 | B194: 6739 7391 8005 | C194: 4503 5050 5594 | D194: HIGH NOTE 3: udžbenik | E194: Daniel Brayshaw, Bob Hastings, Lynda Edwards, Catherine Bright, Rod Fricker, Joanna Sosnowska | F194: udžbenik | G194: 0.5 | H194: 0 | I194: 2.,3.,4. | J194: 19.96190476 | L194: 20.96 | M194: 0 | O194: 0 | P194: 0
A195: 9781292209647 | D195: HIGH NOTE 3: radna bilježnica | E195: Lynda Edwards, Jane Bowie | F195: radna bilježnica | G195: 0.35 | H195: 0 | I195: 2.,3.,4. | J195: 12.38095238 | L195: 13 | M195: 0 | O195: 0 | P195: 0
A196: 9781292209579 | D196: HIGH NOTE 3: digitalna radna bilježnica | E196: Lynda Edwards, Jane Bowie | F196: digitalna radna bilježnica | G196: 0 | H196: 0 | I196: 2.,3.,4. | J196: 12.38095238 | L196: 13 | M196: 0 | O196: 0 | P196: 0
A197: 9781292415659 | B197: 6740 7392 | C197: 4504 5051 | D197: HIGH NOTE 4: udžbenik | E197: Rachael Roberts, Caroline Krantz, Lynda Edwards, Catherine Bright, Bob Hastings, Emma Szlachta | F197: udžbenik | G197: 0.51 | H197: 0 | I197: 2.,3.,4. | J197: 19.96190476 | L197: 20.96 | M197: 0 | O197: 0 | P197: 0
A198: 9781292209791 | D198: HIGH NOTE 4: radna bilježnica | E198: Daniel Brayshaw | F198: radna bilježnica | G198: 0.35 | H198: 0 | I198: 2.,3.,4. | J198: 12.38095238 | L198: 13 | M198: 0 | O198: 0 | P198: 0
A199: 9781292209722 | D199: HIGH NOTE 4: digitalna radna bilježnica | E199: Daniel Brayshaw | F199: digitalna radna bilježnica | G199: 0 | H199: 0 | I199: 2.,3.,4. | J199: 12.38095238 | L199: 13 | M199: 0 | O199: 0 | P199: 0
A200: 9781292415666 | B200: 7393 | C200: 5052 | D200: HIGH NOTE 5: udžbenik | E200: Lynda Edwards, Rachael Roberts, Rod Fricker | F200: udžbenik | G200: 0.49 | H200: 0 | I200: 4. | J200: 19.96190476 | L200: 20.96 | M200: 0 | O200: 0 | P200: 0
A201: 9781292209944 | D201: HIGH NOTE 5: radna bilježnica | E201: Lynda Edwards, Rachael Roberts | F201: radna bilježnica | G201: 0.35 | H201: 0 | I201: 4. | J201: 12.38095238 | L201: 13 | M201: 0 | O201: 0 | P201: 0
A202: 9781292209876 | D202: HIGH NOTE 5: digitalna radna bilježnica | E202: Lynda Edwards, Rachael Roberts | F202: digitalna radna bilježnica | G202: 0 | H202: 0 | I202: 4. | J202: 12.38095238 | L202: 13 | M202: 0 | O202: 0 | P202: 0
D203: NJEMAČKI JEZIK
A204: 9783193010827 9783193610829 | B204: 6241 8014 | C204: 4050 5603 | D204: SCHRITTE INTERNATIONAL NEU 1 : udžbenik i radna bilježnica za njemački jezik | E204: Daniela Niebisch, Sylvette Penning-Hiemstra, Franz Specht, Monika Bovermann, Angela Pude, Monika Reimann | F204: udžbenik i radna bilježnica | G204: 0.624 | H204: =G204*N204 -> 0 | I204: 1. | J204: =L204/1.05 -> 23.40952381 | L204: 24.58 | M204: =IF(M$14<>"",0%,IF(M$12<>"",0%,IF(M$10<>"",IF(N$19<>"",16%,13%),0%))) -> 0 | O204: =L204*M204*N204 -> 0 | P204: =L204*N204 -> 0
A205: 9783196610826 | B205: 6766 8015 | C205: 4526 5604 | D205: SCHRITTE INTERNATIONAL NEU 2 : udžbenik i radna bilježnica za njemački jezik | E205: Daniela Niebisch, Sylvette Penning-Hiemstra, Franz Specht, Monika Bovermann, Angela Pude, Monika Reimann | F205: udžbenik i radna bilježnica | G205: 0.631 | H205: 0 | I205: 1.,2. | J205: =L205/1.05 -> 23.40952381 | L205: 24.58 | M205: 0 | O205: 0 | P205: 0
A206: 9783193010841 9783193610843 | B206: 6767 8016 | C206: 4527 5605 | D206: SCHRITTE INTERNATIONAL NEU 3 : udžbenik i radna bilježnica za njemački jezik | E206: Silke Hilpert, Daniela Niebisch, Sylvette Penning-Hiemstra, Angela Pude, Franz Specht, Monika Reimann, Andreas Tomaszewski | F206: udžbenik i radna bilježnica | G206: 0.613 | H206: 0 | I206: 1.,2.,3. | J206: =L206/1.05 -> 23.40952381 | L206: 24.58 | M206: 0 | O206: 0 | P206: 0
A207: 9783196010848 9783196610840 | B207: 6768 7409 8017 | C207: 4528 5066 5606 | D207: SCHRITTE INTERNATIONAL NEU 4 : udžbenik i radna bilježnica za njemački jezik | E207: Silke Hilpert, Daniela Niebisch, Angela Pude, Franz Specht, Monika Reimann, Andreas Tomaszewski | F207: udžbenik i radna bilježnica | G207: 0.61 | H207: 0 | I207: 1.,2.,3.,4. | J207: =L207/1.05 -> 23.40952381 | L207: 24.58 | M207: 0 | O207: 0 | P207: 0
A208: 9783193010865 9783194610866 | B208: 6769 7410 | C208: 4529 5067 | D208: SCHRITTE INTERNATIONAL NEU 5 : udžbenik i radna bilježnica za njemački jezik | E208: Silke Hilpert, Marion Kerner, Jutta Orth-Chambah, Angela Pude, Anja Schümann, Franz Specht, Dörte Weers, Barbara Gottstein-Schramm, Susanne Kalender, Isabel Krämer-Kienle, Daniela Niebisch, Monika Remann | F208: udžbenik i radna bilježnica | G208: 0.618 | H208: 0 | I208: 2.,3., 4. | J208: =L208/1.05 -> 23.40952381 | L208: 24.58 | M208: 0 | O208: 0 | P208: 0
A209: 9783196010862 9783196610864 | B209: 6770 7411 | C209: 4530 5068 | D209: SCHRITTE INTERNATIONAL NEU 6 : udžbenik i radna bilježnica za njemački jezik | E209: Silke Hilpert, Marion Kerner, Angela Pude, Anne Robert, Anja Schümann, Franz Specht, Dörte Weers, Barbara Gottstein-Schramm, Valeska Hagner, Susanne Kalender, Isabel Krämer-Kienle | F209: udžbenik i radna bilježnica | G209: 0.624 | H209: 0 | I209: 2.,3., 4. | J209: 23.40952381 | L209: 24.58 | M209: 0 | O209: 0 | P209: 0
A210: 9783190016587 | B210: 6245 | C210: 4054 | D210: DEUTSCH.COM 1 : udžbenik za njemački jezik | E210: Gerhard Neuner, Anta Kursiša, Lina Pilypaityte, Erna Szakaly, Sara Vicente | F210: udžbenik | G210: 0.387 | H210: 0 | I210: 1.,2. | J210: 18.39047619 | L210: 19.31 | M210: 0 | O210: 0 | P210: 0
A211: 9783193416582 | D211: DEUTSCH.COM 1 : radna bilježnica | E211: Sara Vicente, Carmen Cristache, Gerhard Neuner, Lina Pilypaityte, Birgit Kirchner, Erna Szakaly | F211: radna bilježnica s CD-om | G211: 0.52 | H211: 0 | I211: 1.,2. | J211: 13.80952381 | L211: 14.5 | M211: 0 | O211: 0 | P211: 0
A212: 9783190016594 | B212: 6249 | C212: 4058 | D212: DEUTSCH.COM 2 : udžbenik za njemački jezik | E212: Gerhard Neuner, Lina Pilypaityte, Sara Vicente, Carmen Cristache, Erna Szakaly | F212: udžbenik | G212: 0.42 | H212: 0 | I212: 1.,2.,3.,4. | J212: 18.39047619 | L212: 19.31 | M212: 0 | O212: 0 | P212: 0
A213: 9783193416599 | D213: DEUTSCH.COM 2 : radna bilježnica | E213: Anna Breitsameter, Sara Vicente, Carmen Cristache, Lina Pilypaityte | F213: radna bilježnica s CD-om | G213: 0.544 | H213: 0 | I213: 1.,2.,3.,4. | J213: 13.80952381 | L213: 14.5 | M213: 0 | O213: 0 | P213: 0
... 69 more rows

Sheet Narudžbenica za ispis
A1: Uprava: Vukovarska Avenija 272/12, 10000 Zagreb | P1: Veleprodaja i Školski odjel: Kopačevski put 1c, 10090 Zagreb
A2: OIB: 80364394364, MB: 1476297 | P2: Tel.: +385 1 4059 556
A3: IBAN: HR3923600001103178728
A8: Šifra kupca: | B8: 1 | D8: Naručitelj/kupac: | M8: Vrst kupca (označite X)
D10: Adresa:
D12: OIB: | M12: x | N12: ŠKOLE
D14: Kontakt osoba:
D16: Tel. / fax.: | M16: Datum: | N16: =NOW() -> 2025-07-16T09:09:32.660
D19: Način plaćanja (označite s X): | E19: Po ponudi (predračunu) | N19: x
E20: S odgodom plaćanja. Ug. broj:
D23: Preuzimanje robe (označite s X): | E23: Osobno u našem skladištu:
E24: Isporuka poštom (poštarina se NE naplaćuje) | N24: x
A26: Narudžbenica udžbenika br. ________1672025
A27: Bar code | B27: Reg.broj | C27: Šifra kmpl | D27: Naziv udžbenika | E27: Autori | F27: Vrsta izdanja | G27: Težina | H27: Uk. težina | I27: Raz. | J27: VPC | L27: MPC | M27: Rabat | N27: Kom | O27: Iznos rabata | P27: Iznos
E28: Ukupno komada: | H28: =SUM(#REF!) ->  | N28: =SUM(#REF!) -> 
E29: UKUPNA vrijednost: | N29: Eur | P29: =SUM(#REF!) -> 
E30: Rabat: | N30: Eur | P30: =SUM(#REF!) -> 
E31: Sveukupno: | N31: Eur | P31: =P29-P30 -> 
E32: Poštarina: | N32: Eur | P32: =IF(H28=0,0,IF(M12<>"",0,IF(M10<>"",IF(N24<>"",_xlfn.FLOOR.MATH(H28/15)*6.76+INDEX(C44:C48,MATCH(TRUE,B44:B48>(H28-_xlfn.FLOOR.MATH(H28/15)*15),0)),0),IF(M14<>"",_xlfn.FLOOR.MATH(H28/15)*6.76+INDEX(C44:C48,MATCH(TRUE,B44:B48>(H28-_xlfn.FLOOR.MATH(H28/15)*15),0)),0)))) -> 
E33: Za platiti: | N33: Eur | P33: =P31+P32 -> 
A38: Poštovani kupci,
A40: Želeći Vam olakšati izradu Narudžbenice nudimo Vam skraćeni postupak. Ovu Narudžbenicu popunjavate počevši s izborom NAČIN PLAĆANJA (označiti sa X Predračun ili S odgodom plaćanja) potom izaberite PREUZIMANJE ISPORUKE - označite s X OSOBNO PREUZIMANJA u našem skladištu ili ISPORUKA POŠTOM.
A41: Nakon toga treba popuniti (prazna polja za podatke o Vama ili Vašoj tvrtci: Naziv ŠKOLE, adresu, OIB, kontakt osoba, Tel. /fax.
A42: Nadalje ispunjavate samo količine pojedinog naslova koje naručujete.
A43: Pritiskom na polje PRIPREMI ZA ISPIS kreira se novi LIST dokumenta naziva Narudžbenica za ispis. U toj narudžbenici su prikazani samo naslovi koje naručujete. Narudžbenicu možete i otisnuti, poslati je na skole@naklada-ljevak.hr
